Workbook

Sheet 記載例（事業所一覧）
A3: 申請事業所一覧
F5: 法人名 | H5: 社会福祉法人○○福祉会
A7: 申請事業所名の全てを以下に記載願います。 | L7: 地域密着型特別養護老人ホーム
A8: 施設種別 | C8: 施設・事業所名 | H8: （※区担当者使用欄） 補助額 | J8: 委託契約締結(予定）日 | L8: 介護老人保健施設
A9: 地域密着型特別養護老人ホーム | C9: 特別養護老人ホーム▲▲ | J9: 2022-09-01 | L9: 介護医療院
A10: 認知症高齢者グループホーム | C10: グループホーム■■ | J10: 2022-09-01 | L10: 介護療養型医療施設
L11: 軽費老人ホーム
L12: 有料老人ホーム
L13: サービス付き高齢者向け住宅
L14: 短期入所生活介護
L15: 短期入所療養介護
L16: 認知症高齢者グループホーム
L17: 小規模多機能型居宅介護事業所
L18: 看護小規模多機能型居宅介護事業所
L19: 生活支援ハウス
A20: ※欄が不足する場合は、適宜追加してください。
A22: 当該補助金に係る関係書類の送付先、担当者の連絡先を記載してください。
A23: 住 所 | C23: 〒132-0000
C24: 東京都江戸川区中央〇丁目○番○号
A25: 所 属 | C25: 本部事務局
A26: 担当者氏名 | C26: 事務局長 山田 太郎
A27: TEL | C27: ０３－５６６２－００００
A28: E-mail | C28: taro-yamada@hukushikai.co.jp

Sheet 補助協議書
AK4: 令和４年 ８月 １日
B6: 江戸川区長 殿
Z9: 申請者
AA10: 所在地 | AH10: 東京都江戸川区中央〇丁目○番○号
AA11: 名称 | AH11: 社会福祉法人○○福祉会
AA12: 代表者職氏名 | AL12: 理事長 ○○○○○ | AZ12: 印
A15: 令和４年度江戸川区地域密着型施設等の簡易陰圧装置の設置支援事業補助協議書
B18: このことについて、下記のとおり提出します。
A20: 記
A22: １ 交付申請額
D23: 金 | F23: =所要額調書!K47 -> 46,208,000 | S23: 円
A25: ２ 添付書類
B26: （１）所要額調書
B27: （２）事業計画書
B28: （３）平面図等
B29: （４）見積書、契約書等
B30: （５）その他参考となる資料

Sheet 所要額調書
A2: 所要額調書
A4: 法 人 名 | B4: 社会福祉法人 ○○福祉会
A6: （１）簡易陰圧装置の設置に係る経費支援事業 | L6: （単位：円）
A7: 施設名 | B7: 施設種別 | C7: 総事業費 A | D7: 補助対象経費 実支出予定額 B | E7: 寄附金その他 の収入額 C | F7: 差引後 実支出予定額 D＝B-C | G7: 補助単価 E | H7: 設置予定台数(補助対象) F | I7: 補助基準額 G＝E×F | J7: 補助基本額 H (DとGを比較して少ない方の額) | K7: 補助率 I | L7: 申請額 J=H×I
A9: 特別養護老人ホーム▲▲ | B9: 地域密着型 特別養護老人ホーム | C9: 4,730,000 | D9: 4,648,600 | F9: =D9-E9 -> 4,648,600 | G9: 4,320,000 | H9: 3 | I9: =ROUNDDOWN(G9*H9,-3) -> 12,960,000 | J9: =MIN(F9,I9) -> 4,648,600 | K9: 10分の10 | L9: =ROUNDDOWN(J9*10/10, -3) -> 4,648,000
A10: グループホーム■■ | B10: 認知症高齢者 グループホーム | C10: 6,600,000 | D10: 6,600,000 | F10: =D10-E10 -> 6,600,000 | G10: 4,320,000 | H10: 5 | I10: =ROUNDDOWN(G10*H10,-3) -> 21,600,000 | J10: =MIN(F10,I10) -> 6,600,000 | K10: 10分の10 | L10: =ROUNDDOWN(J10*10/10, -3) -> 6,600,000
F11: =D11-E11 -> 0 | G11: 4,320,000 | I11: =ROUNDDOWN(G11*H11,-3) -> 0 | J11: =MIN(F11,I11) -> 0 | K11: 10分の10 | L11: =ROUNDDOWN(J11*10/10, -3) -> 0
K12: 計 | L12: =SUM(L9:L11) -> 11,248,000
A14: （２）感染拡大防止のためのゾーニング環境等の整備に係る経費支援事業
A15: ① ユニット型施設の各ユニットへの玄関室設置によるゾーニング経費支援 | L15: （単位：円）
A16: 施設名 | B16: 施設種別 | C16: 総事業費 A | D16: 補助対象経費 実支出予定額 B | E16: 寄附金その他 の収入額 C | F16: 差引後 実支出予定額 D＝B-C | G16: 補助単価 E | H16: 整備か所数 F | I16: 補助基準額 G＝E×F | J16: 補助基本額 H (DとGを比較して少ない方の額) | K16: 補助率 I | L16: 申請額 J=H×I
A18: グループホーム■■ | B18: 認知症高齢者 グループホーム | C18: 9,020,000 | D18: 9,020,000 | F18: =D18-E18 -> 9,020,000 | G18: 1,000,000 | H18: 10 | I18: =ROUNDDOWN(G18*H18,-3) -> 10,000,000 | J18: =MIN(F18,I18) -> 9,020,000 | K18: 10分の10 | L18: =ROUNDDOWN(J18*10/10, -3) -> 9,020,000
F19: =D19-E19 -> 0 | G19: 1,000,000 | I19: =ROUNDDOWN(G19*H19,-3) -> 0 | J19: =MIN(F19,I19) -> 0 | K19: 10分の10 | L19: =ROUNDDOWN(J19*10/10, -3) -> 0
F20: =D20-E20 -> 0 | G20: 1,000,000 | I20: =ROUNDDOWN(G20*H20,-3) -> 0 | J20: =MIN(F20,I20) -> 0 | K20: 10分の10 | L20: =ROUNDDOWN(J20*10/10, -3) -> 0
K21: 計 | L21: =SUM(L18:L20) -> 9,020,000
A23: ② 従来型個室・多床室のゾーニング経費支援 | L23: （単位：円）
A24: 施設名 | B24: 施設種別 | C24: 総事業費 A | D24: 補助対象経費 実支出予定額 B | E24: 寄附金その他 の収入額 C | F24: 差引後 実支出予定額 D＝B-C | G24: 補助単価 E | H24: 整備か所数 F | I24: 補助基準額 G＝E×F | J24: 補助基本額 H (DとGを比較して少ない方の額) | K24: 補助率 I | L24: 申請額 J=H×I
A26: 特別養護老人ホーム▲▲ | B26: 地域密着型 特別養護老人ホーム | C26: 5,610,000 | D26: 5,610,000 | F26: 5,610,000 | G26: 6,000,000 | H26: 1 | I26: 5,610,000 | J26: 5,610,000 | K26: 10分の10 | L26: =ROUNDDOWN(J26*10/10, -3) -> 5,610,000
F27: =D27-E27 -> 0 | G27: 6,000,000 | I27: =ROUNDDOWN(G27*H27,-3) -> 0 | J27: =MIN(F27,I27) -> 0 | K27: 10分の10 | L27: =ROUNDDOWN(J27*10/10, -3) -> 0
F28: =D28-E28 -> 0 | G28: 6,000,000 | I28: =ROUNDDOWN(G28*H28,-3) -> 0 | J28: =MIN(F28,I28) -> 0 | K28: 10分の10 | L28: =ROUNDDOWN(J28*10/10, -3) -> 0
K29: 計 | L29: =SUM(L26:L28) -> 5,610,000
A31: ③ 家族面会室の整備等経費支援 | L31: （単位：円）
A32: 施設名 | B32: 施設種別 | C32: 総事業費 A | D32: 補助対象経費 実支出予定額 B | E32: 寄附金その他 の収入額 C | F32: 差引後 実支出予定額 D＝B-C | G32: 補助単価 E | H32: 対象施設・ 事業所数 F | I32: 補助基準額 G＝E×F | J32: 補助基本額 H (DとGを比較して少ない方の額) | K32: 補助率 I | L32: 申請額 J=H×I
A34: 特別養護老人ホーム▲▲ | B34: 地域密着型 特別養護老人ホーム | C34: 4,510,000 | D34: 4,510,000 | F34: =D34-E34 -> 4,510,000 | G34: 3,500,000 | H34: 1 | I34: =IF(F34=0,0,ROUNDDOWN(G34*H34,-3)) -> 3,500,000 | J34: =MIN(F34,I34) -> 3,500,000 | K34: 10分の10 | L34: =ROUNDDOWN(J34*10/10, -3) -> 3,500,000
F35: =D35-E35 -> 0 | G35: 3,500,000 | H35: 1 | I35: =IF(F35=0,0,ROUNDDOWN(G35*H35,-3)) -> 0 | J35: =MIN(F35,I35) -> 0 | K35: 10分の10 | L35: =ROUNDDOWN(J35*10/10, -3) -> 0
F36: =D36-E36 -> 0 | G36: 3,500,000 | H36: 1 | I36: =IF(F36=0,0,ROUNDDOWN(G36*H36,-3)) -> 0 | J36: =MIN(F36,I36) -> 0 | K36: 10分の10 | L36: =ROUNDDOWN(J36*10/10, -3) -> 0
K37: 計 | L37: =SUM(L34:L36) -> 3,500,000
A39: （３）多床室の個室化に要する改修費支援事業 | L39: （単位：円）
A40: 施設名 | B40: 施設種別 | C40: 総事業費 A | D40: 補助対象経費実支出予定額 B | E40: 寄附金その他 の収入額 C | F40: 差引後 実支出予定額 D＝B-C | G40: 補助単価 E | H40: 整備床数 F | I40: 補助基準額 G＝E×F | J40: 補助基本額 H (DとGを比較して少ない方の額) | K40: 補助率 I | L40: 申請額 J=H×I
A42: 特別養護老人ホーム▲▲ | B42: 地域密着型 特別養護老人ホーム | C42: 16,830,000 | D42: 16,830,000 | F42: =D42-E42 -> 16,830,000 | G42: 978,000 | H42: 20 | I42: =ROUNDDOWN(G42*H42,-3) -> 19,560,000 | J42: =MIN(F42,I42) -> 16,830,000 | K42: 10分の10 | L42: =ROUNDDOWN(J42*10/10, -3) -> 16,830,000
F43: =D43-E43 -> 0 | G43: 978,000 | I43: =ROUNDDOWN(G43*H43,-3) -> 0 | J43: =MIN(F43,I43) -> 0 | K43: 10分の10 | L43: =ROUNDDOWN(J43*10/10, -3) -> 0
F44: =D44-E44 -> 0 | G44: 978,000 | I44: =ROUNDDOWN(G44*H44,-3) -> 0 | J44: =MIN(F44,I44) -> 0 | K44: 10分の10 | L44: =ROUNDDOWN(J44*10/10, -3) -> 0
K45: 計 | L45: =SUM(L42:L44) -> 16,830,000
G47: 補助金交付申請額の合計金額 （円） | K47: =SUM(L12,L21,L29,L37,L45) -> 46,208,000
A49: (注） １ 欄が足りない場合は、適宜行を追加して記入すること。
A50: ２ A欄、B欄は、別紙1-2「事業計画書」の事業費と一致させること。
A51: ３ F欄は、別紙1-2「事業計画書」の「うち補助対象設置台数」、「整備か所数」又は「整備床数」と一致させること。
A52: ４ G欄及びJ欄には、千円未満の端数を切り捨てた額を記入すること。
P60: 抵当権設定の有無
P61: 有り
P62: 無し

Sheet 事業計画書
A3: 事業計画書
A5: １ 施設等の概要
A6: 法人名 | B6: 社会福祉法人 ○○福祉会 | J6: 施設種別 | K6: 地域密着型特別養護老人ホーム
A7: 施設名 | B7: 特別養護老人ホーム▲▲ | J7: 開設年月日 | K7: 1991-04-01
A8: 施設所在地 | B8: 東京都江戸川区中央一丁目○番○号 | J8: 定員数 | K8: 29 | L8: 人 | M8: (うち併設ショート | O8: 10 | P8: 人）
A9: 建物竣工年月日 | B9: 1990-12-20 | E9: 建物構造 | G9: 鉄骨造 地上４階建 | J9: 延べ床面積 | K9: 1500.00 | L9: ㎡ | M9: 抵当権の有無 | O9: 無
A10: ＊ 特別養護老人ホームは、併設される短期入所生活介護事業所分を含めて記入すること。
A12: ２ 簡易陰圧装置の設置に係る経費支援事業 (実施する場合のみ記載）
A13: 事業内容 （※１） | B13: 新型コロナウイルス等の感染が疑われる者が発生した場合に、当該利用者を隔離することが想定される静養室に簡易陰圧装置を１台設置する。また、感染が疑われる者が複数発生した場合に備え、居室に設置可能な陰圧ブースを２台購入する（通常時は４階倉庫に保管）。
A14: 契約締結(予定)日 (※２） | B14: 2022-09-01 | E14: 完了予定日 (※２） | G14: 2022-11-30 | J14: 設置予定 台数 | K14: 3 | L14: 台 | M14: うち補助対象 台数(※３） | O14: 3 | P14: 台
A15: 事業費 （※４） | B15: 区分 | G15: 単価（円） | I15: 数量 | J15: 支出予定額（円） | M15: うち補助対象経費（円）
B16: 陰圧装置（型番XXXX） | G16: 2,000,000 | I16: 1 | J16: 2,000,000 | M16: 2,000,000
B17: 陰圧装置（型番YYYY） | G17: 600,000 | I17: 2 | J17: 1,200,000 | M17: 1,200,000
B18: 静養室ダクト工事委託費 | G18: 一式 | J18: 1,000,000 | M18: 1,000,000
B19: 工事事務費（設計監督料） | J19: 100,000 | M19: =MIN(J19,M18*0.026) -> 26,000
B20: 消費税 | J20: =SUM(J16:L19)*0.1 -> 430,000 | M20: =SUM(M16:P19)*0.1 -> 422,600
B21: 合計額（総事業費） | J21: =SUM(J16:L20) -> 4,730,000 | M21: =SUM(M16:P20) -> 4,648,600
A23: ３ 感染拡大防止のためのゾーニング環境等の整備に係る経費支援事業 (実施する場合のみ記載）
A24: ① ユニット型施設の各ユニットへの玄関室設置によるゾーニング経費支援
A25: 事業内容（※１）
A26: 契約締結(予定)日 (※２） | E26: 完了予定日 (※２） | J26: 整備か所数 | O26: か所
A27: 事業費 （※４） | B27: 区分 | G27: 単価（円） | I27: 数量 | J27: 支出予定額（円） | M27: うち補助対象経費（円）
B33: 合計額（総事業費） | J33: =SUM(J28:L32) -> 0 | M33: =SUM(M28:P32) -> 0
A35: ② 従来型個室・多床室のゾーニング経費支援
A36: 事業内容 （※１） | B36: 感染者が発生した場合に感染者と非感染者の動線を分離するため、現在浴室が設置されていない３階東側エリアについて、倉庫を改修して浴室を設置する。
A37: 契約締結(予定)日 (※２） | B37: 2022-11-01 | E37: 完了予定日 (※２） | G37: 2023-03-31 | J37: 整備か所数 | M37: 1 | O37: か所
A38: 事業費 （※４） | B38: 区分 | G38: 単価（円） | I38: 数量 | J38: 支出予定額（円） | M38: うち補助対象経費（円）
B39: 工事委託費 | G39: 一式 | J39: 5,000,000 | M39: 5,000,000
B40: 工事事務費（設計監督料） | G40: 一式 | J40: 100,000 | M40: =MIN(J40,M39*0.026) -> 100,000
B41: 消費税 | J41: =SUM(J39:L40)*0.1 -> 510,000 | M41: =SUM(M39:P40)*0.1 -> 510,000
B44: 合計額（総事業費） | J44: =SUM(J39:L43) -> 5,610,000 | M44: =SUM(M39:P43) -> 5,610,000
A46: ③ 家族面会室の整備等経費支援
A47: 事業内容 （※１） | B47: １階の面会室２部屋について、施設外から直接出入り可能な出入口を１か所ずつ追加するほか、各面会室のテーブル上にアクリル板を設置する。
A48: 契約締結(予定)日 (※２） | B48: 2022-09-01 | E48: 完了予定日 (※２） | G48: 2022-11-30 | J48: 家族面会室の併設施設との共用の有無 （※５） | N48: 無
A49: 事業費 （※４） | B49: 区分 | G49: 単価（円） | I49: 数量 | J49: 支出予定額（円） | M49: うち補助対象経費（円）
B50: 工事委託費 | G50: 一式 | J50: 4,000,000 | M50: 4,000,000
B51: 工事事務費（設計監督料） | G51: 一式 | J51: 100,000 | M51: =MIN(J51,M50*0.026) -> 100,000
B52: 消費税 | J52: =SUM(J50:L51)*0.1 -> 410,000 | M52: =SUM(M50:P51)*0.1 -> 410,000
B55: 合計額（総事業費） | J55: =SUM(J50:L54) -> 4,510,000 | M55: =SUM(M50:P54) -> 4,510,000
A57: ４ 多床室の個室化に要する改修費支援事業 (実施する場合のみ記載）
A58: 事業内容（※１） | B58: ２階の４人室５室について、各利用者のスペースをパーテーションでで囲うとともに、個室化に伴って必要となるスプリンクラーの設置工事を行う。
A59: 契約締結(予定)日 (※２） | B59: 2022-11-01 | E59: 完了予定日 (※２） | G59: 2023-03-31 | J59: 整備床数 | M59: 20 | O59: 床
A60: 事業費 （※４） | B60: 区分 | G60: 単価（円） | I60: 数量 | J60: 支出予定額（円） | M60: うち補助対象経費（円）
B61: パーテーション設置工事委託費 | G61: 一式 | J61: 7,000,000 | M61: 7,000,000
B62: スプリンクラー設置工事委託費 | G62: 一式 | J62: 8,000,000 | M62: 8,000,000
B63: 工事事務費（設計監督料） | G63: 一式 | J63: 300,000 | M63: 300,000
B64: 消費税 | J64: =SUM(J61:L63)*0.1 -> 1,530,000 | M64: =SUM(M61:P63)*0.1 -> 1,530,000
B66: 合計額（総事業費） | J66: =SUM(J61:L65) -> 16,830,000 | M66: =SUM(M61:P65) -> 16,830,000
A68: ※１ 設備の設置場所や工事内容等を具体的に記載し、設置場所・施工箇所等が確認できる資料(平面図等）を添付すること。
A69: ※２ 補助の対象となる事業は、令和4年6月27日以降に契約し、令和5年3月31日までに完了するものに限る。
A70: ※３ 補助対象となる簡易陰圧装置は、居室、静養室又は医務室に設置したものに限る。 また、簡易陰圧装置設置した居室等の数又は施設の定員のいずれか少ない方の数を上限とする。
A71: ※４ 総事業費、補助対象経費等が確認できるもの（見積書・契約書等の写しなど）を添付すること。 工事事務費（工事施工のため直接必要な事務に要する費用であって、旅費、消耗品費、通信運搬費、印刷製本費及び設計 監督料等をいう。）を計上する場合、補助対象経費は、工事費又は工事請負費（備品購入費に相当する経費は除く。）の 2.6％に相当する額を上限とする。
A72: ※５ 整備対象の「家族面会室」を共用する併設施設の有無を記載すること。なお、併設施設と共用する家族面会室の場合は、 いずれか一つの施設・事業所で申請すること。

Sheet 事業計画書２
A3: 事業計画書
A5: １ 施設等の概要
A6: 法人名 | B6: 社会福祉法人 ○○福祉会 | J6: 施設種別 | K6: 認知症高齢者グループホーム
A7: 施設名 | B7: グループホーム■■ | J7: 開設年月日 | K7: 2010-06-01
A8: 施設所在地 | B8: 東京都江戸川区中央一丁目○番○号 | J8: 定員数 | K8: 18 | L8: 人 | M8: (うち併設ショート | P8: 人）
A9: 建物竣工年月日 | B9: 2010-03-31 | E9: 建物構造 | G9: 鉄骨造 地上2階建 | J9: 延べ床面積 | K9: 500.00 | L9: ㎡ | M9: 抵当権の有無 | O9: 無
A10: ＊ 特別養護老人ホームは、併設される短期入所生活介護事業所分を含めて記入すること。
A12: ２ 簡易陰圧装置の設置に係る経費支援事業 (実施する場合のみ記載）
A13: 事業内容 （※１） | B13: 新型コロナウイルス等の感染が疑われる者が発生した場合に備え、居室に設置可能な陰圧ブースを５台購入する（通常時は１階倉庫に保管）。
A14: 契約締結(予定)日 (※２） | B14: 2022-10-10 | E14: 完了予定日 (※２） | G14: 2022-10-31 | J14: 設置予定 台数 | K14: 5 | L14: 台 | M14: うち補助対象 台数(※３） | O14: 5 | P14: 台
A15: 事業費 （※４） | B15: 区分 | G15: 単価（円） | I15: 数量 | J15: 支出予定額（円） | M15: うち補助対象経費（円）
B16: 陰圧装置（型番ZZZZZ） | G16: 1,200,000 | I16: 5 | J16: =G16*I16 -> 6,000,000 | M16: =J16 -> 6,000,000
B17: 消費税 | J17: =SUM(J16)*0.1 -> 600,000 | M17: 600,000
B21: 合計額（総事業費） | J21: =SUM(J16:L20) -> 6,600,000 | M21: =SUM(M16:P20) -> 6,600,000
A23: ３ 感染拡大防止のためのゾーニング環境等の整備に係る経費支援事業 (実施する場合のみ記載）
A24: ① ユニット型施設の各ユニットへの玄関室設置によるゾーニング経費支援
A25: 事業内容（※１） | B25: 各ユニットの入口に玄関室を設置し、消毒や防護服の着脱等を行うためのスペースを確保する。
A26: 契約締結(予定)日 (※２） | B26: 2022-09-01 | E26: 完了予定日 (※２） | G26: 2022-11-30 | J26: 整備か所数 | M26: 2 | O26: か所
A27: 事業費 （※４） | B27: 区分 | G27: 単価（円） | I27: 数量 | J27: 支出予定額（円） | M27: うち補助対象経費（円）
B28: 工事委託費 | G28: 一式 | J28: 8,000,000 | M28: 8,000,000
B29: 工事事務費（設計監督料） | G29: 一式 | J29: 200,000 | M29: 200,000
B30: 消費税 | J30: =SUM(J28:L29)*0.1 -> 820,000 | M30: =SUM(M28:P29)*0.1 -> 820,000
B33: 合計額（総事業費） | J33: =SUM(J28:L32) -> 9,020,000 | M33: =SUM(M28:P32) -> 9,020,000
A35: ② 従来型個室・多床室のゾーニング経費支援
A36: 事業内容 （※１）
A37: 契約締結(予定)日 (※２） | E37: 完了予定日 (※２） | J37: 整備か所数 | O37: か所
A38: 事業費 （※４） | B38: 区分 | G38: 単価（円） | I38: 数量 | J38: 支出予定額（円） | M38: うち補助対象経費（円）
B44: 合計額（総事業費） | J44: =SUM(J39:L43) -> 0 | M44: =SUM(M39:P43) -> 0
A46: ③ 家族面会室の整備等経費支援
A47: 事業内容 （※１）
A48: 契約締結(予定)日 (※２） | E48: 完了予定日 (※２） | J48: 家族面会室の併設施設との共用の有無 （※５）
A49: 事業費 （※４） | B49: 区分 | G49: 単価（円） | I49: 数量 | J49: 支出予定額（円） | M49: うち補助対象経費（円）
B55: 合計額（総事業費） | J55: =SUM(J50:L54) -> 0 | M55: =SUM(M50:P54) -> 0
A57: ４ 多床室の個室化に要する改修費支援事業 (実施する場合のみ記載）
A58: 事業内容（※１）
A59: 契約締結(予定)日 (※２） | E59: 完了予定日 (※２） | J59: 整備床数 | O59: 床
A60: 事業費 （※４） | B60: 区分 | G60: 単価（円） | I60: 数量 | J60: 支出予定額（円） | M60: うち補助対象経費（円）
B66: 合計額（総事業費） | J66: =SUM(J61:L65) -> 0 | M66: =SUM(M61:P65) -> 0
A68: ※１ 設備の設置場所や工事内容等を具体的に記載し、設置場所・施工箇所等が確認できる資料(平面図等）を添付すること。
A69: ※２ 補助の対象となる事業は、令和4年6月27日以降に契約し、令和5年3月31日までに完了するものに限る。
A70: ※３ 補助対象となる簡易陰圧装置は、居室、静養室又は医務室に設置したものに限る。 また、簡易陰圧装置設置した居室等の数又は施設の定員のいずれか少ない方の数を上限とする。
A71: ※４ 総事業費、補助対象経費等が確認できるもの（見積書・契約書等の写しなど）を添付すること。 工事事務費（工事施工のため直接必要な事務に要する費用であって、旅費、消耗品費、通信運搬費、印刷製本費及び設計 監督料等をいう。）を計上する場合、補助対象経費は、工事費又は工事請負費（備品購入費に相当する経費は除く。）の 2.6％に相当する額を上限とする。
A72: ※５ 整備対象の「家族面会室」を共用する併設施設の有無を記載すること。なお、併設施設と共用する家族面会室の場合は、 いずれか一つの施設・事業所で申請すること。

Sheet 別紙1-3「ＩＣＴ活用による業務改善計画書」 (2) (hidden)
M1: 別紙１-３
A2: ＩＣＴ活用による業務改善計画書
A5: １-１ 法人・事業所概要
A7: 法人名
A8: 事業所名称
A9: 対象事業所種別
A12: 事業所所在地 | B12: 〒
B13: 東京都
A15: １-２ 現在の事業所の状況
A17: 定員数 | B17: ユニット型
B18: 従来型
A19: 建物構造 | G19: 延床面積
A20: 対象事業所種別 | E20: （ 床）
E22: （ ）
A23: 職員数 | B23: 介護職員 | D23: 常勤 | G23: 非常勤 | J23: 計
B24: 看護職員 | D24: 常勤 | G24: 非常勤 | J24: 計
B25: 合計 | D25: 常勤 | G25: 非常勤 | J25: 計
A27: ※補助申請年度の４月１日時点の情報を記入してください。
A28: ※職員数は、併設ショートステイを含めて記載し、その他併設サービスは含まずに記載ください。
N29: ※ＨＰ等での公表は２－１以降
A30: ２-１ 事業所の概要
A31: 対象事業所種別
A34: 法人名・施設名
A35: 竣工年月日
A36: 定員数
A37: 建物構造 | G37: 延床面積
A38: ２-２ 法人・事業所における解決課題
A39: 申請する事業所における現状の問題点、ＩＣＴ活用によって解決したいと考えている課題、効率化を図りたい介護業務等を具体的に記載してください。
A40: （現状の問題点、取り組むべき課題）
A41: （ＩＣＴ化する介護業務等）
A42: ２-３ 法人・事業所における検討状況、組織体制
A43: この申請にあたり、ＩＣＴ環境整備及びＩＣＴ機器導入に当たり、法人・事業所内でのどのような検討を行ったか、ＩＣＴ導入を担当する組織体制など具体的に記載してください。
A44: （内部での検討状況）
A45: （ＩＣＴ導入のための組織体制）
A46: 理事会等の 議事録 | B46: ＩＣＴによる業務改善計画の内容、環境整備や機器等の購入に係る各理事等の発言内容や質疑応答など、法人内部での意思決定過程がわかる詳細な議事録を作成し、原本証明した写しを別途提出すること。 | N46: ※議事録はＨＰ公表なし
A48: ２-４ 業務改善計画（基本単価に関するもの）
A49: １ 利用者処遇業務に関するＩＣＴ導入前の外部コンサルティング
A50: 外部コンサルティングの活用
A51: 活用する場合、委託先及び内容を具体的に記載してください。
A52: （委託先）
A53: （委託内容）
A54: ２ 利用者処遇業務に関するＩＣＴを活用した業務改善
A55: ＩＣＴを活用した以下の（１）から（３）にまたがる業務改善計画と想定する効果を具体的に記載してください。
A56: （１）利用者又は利用者の居室に関すること | B56: （業務改善計画：ＩＣＴを活用した課題の解決策） | J56: （想定する効果・目標値）
A57: （２）介護職員等（直接利用者の処遇に当たる職員）に関すること | B57: （業務改善計画：ＩＣＴを活用した課題の解決策） | J57: （想定する効果・目標値）
A58: （３）スタッフステーションに関すること | B58: （業務改善計画：ＩＣＴを活用した課題の解決策） | J58: （想定する効果・目標値）
A60: ※見守り支援機器を導入する場合
A61: 追加資料 | B61: 身体拘束に抵触しないか確認するため、以下を別途提出すること。（身体拘束廃止未実施減算のおそれあり） ・身体的拘束の適正化のための指針 ・見守り支援機器活用に対する考え方（指針に記されていない場合は別途提出） | N61: ※追加資料はＨＰ公表なし
A63: ３ ＩＣＴ環境整備計画
A64: 既存のＩＣＴ環境有無 | B64: ＷｉＦｉ環境 | F64: （ | H64: ・ | J64: ）
A65: 本事業におけるＩＣＴ環境整備計画 | B65: 実施予定
B66: 整備内容： | N66: 本体施設、加算単価の対象となる併設サービス、それ以外が区別できるよう平面図を色分けすること
A68: ４ ＩＣＴ機器導入計画
B69: 導入機器等 | D69: メーカー | F69: 仕様 | H69: 台数 | I69: 選定理由 | L69: 備考
A70: 導入に要するＩＣＴ機器 （導入機器、ソフトウェア、メーカー、仕様、台数、選定理由等について記載してください。） | N70: ←記載例で「備考」欄に台数の根拠を入れておく
A77: ２-５ 業務改善計画（加算単価に関するもの）
A78: １ 組織管理業務、併設サービスに関するＩＣＴを活用した業務改善
A79: 加算単価の申請
A80: 加算単価の申請がある場合、ＩＣＴを活用した組織管理業務、併設サービス等（※併設ショートステイに関する費用は基本単価に含む）における業務改善計画と想定する効果を具体的に記載してください。
A81: （業務改善計画：ＩＣＴを活用した課題の解決策） | J81: （想定する効果・目標値）
A82: ２ ＩＣＴ機器導入計画
B83: 導入機器等 | D83: メーカー | F83: 仕様 | H83: 台数 | I83: 選定理由 | L83: 備考
A84: 導入に要するＩＣＴ機器 （導入機器、ソフトウェア、メーカー、仕様、台数、選定理由等について記載してください。） | N84: ←記載例で「備考」欄に台数の根拠を入れておく
A90: ※適宜、枠を拡大してください。別紙添付としても構いません。 | N90: ←記載例にかいておく！
